[Event "*** Titled Tuesday Blitz"]
[Site "Chess.com"]
[Date "2019.12.03"]
[Round "4"]
[White "ferdipy"]
[Black "becemix"]
[Result "0-1"]
[WhiteElo "2201"]
[BlackElo "2492"]
[TimeControl "180+2"]
[EndTime "13:47:38 PST"]
[Termination "becemix won by resignation"]

1. e4 {[%clk 0:03:01.9]} 1... e5 {[%clk 0:02:53.6]} 2. Nf3 {[%clk 0:03:01.9]}
2... Nc6 {[%clk 0:02:54.8]} 3. Bc4 {[%clk 0:03:03.4]} 3... Bc5 {[%clk
0:02:54.6]} 4. c3 {[%clk 0:03:03.7]} 4... Nf6 {[%clk 0:02:49.9]} 5. d3 {[%clk
0:03:03.3]} 5... d6 {[%clk 0:02:50.5]} 6. O-O {[%clk 0:03:03.6]} 6... h6 {[%clk
0:02:48.9]} 7. a4 {[%clk 0:03:04]} 7... a6 {[%clk 0:02:46]} 8. Na3 {[%clk
0:03:04.1]} 8... Be6 {[%clk 0:02:42]} 9. Bxe6 {[%clk 0:03:02.7]} 9... fxe6
{[%clk 0:02:41.1]} 10. Nc2 {[%clk 0:03:04.6]} 10... O-O {[%clk 0:02:40.1]} 11.
Be3 {[%clk 0:03:05.3]} 11... Bxe3 {[%clk 0:02:39]} 12. Nxe3 {[%clk 0:03:06.3]}
12... Qe8 {[%clk 0:02:40]} 13. b4 {[%clk 0:03:05.8]} 13... Nh5 {[%clk
0:02:39.5]} 14. g3 {[%clk 0:03:05.6]} 14... g5 {[%clk 0:02:30.6]} 15. Kg2 {[%clk
0:03:04.5]} 15... Qg6 {[%clk 0:02:30.6]} 16. h3 {[%clk 0:02:47.6]} 16... Rf7
{[%clk 0:02:29.9]} 17. Nh2 {[%clk 0:02:44.8]} 17... Raf8 {[%clk 0:02:27.9]} 18.
f3 {[%clk 0:02:46.3]} 18... Kh7 {[%clk 0:02:15.2]} 19. d4 {[%clk 0:02:47.1]}
19... exd4 {[%clk 0:02:13.6]} 20. Qxd4 {[%clk 0:02:39.3]} 20... Nxd4 {[%clk
0:02:13.5]} 0-1

[Event "*** Titled Tuesday Blitz"]
[Site "Chess.com"]
[Date "2019.12.03"]
[Round "4"]
[White "crazy_machine"]
[Black "semchik73"]
[Result "1-0"]
[WhiteElo "2654"]
[BlackElo "2399"]
[TimeControl "180+2"]
[EndTime "13:47:54 PST"]
[Termination "crazy_machine won by checkmate"]

1. d4 {[%clk 0:03:01.9]} 1... d5 {[%clk 0:03:00.4]} 2. Nc3 {[%clk 0:03:02.7]}
2... Nf6 {[%clk 0:03:00.1]} 3. Bf4 {[%clk 0:03:04]} 3... a6 {[%clk 0:02:57.1]}
4. e3 {[%clk 0:03:05.1]} 4... Bf5 {[%clk 0:02:57.2]} 5. Nf3 {[%clk 0:03:05.9]}
5... e6 {[%clk 0:02:58.2]} 6. Ne5 {[%clk 0:03:07.2]} 6... c5 {[%clk 0:02:57.5]}
7. g4 {[%clk 0:03:08.3]} 7... Bg6 {[%clk 0:02:55.5]} 8. h4 {[%clk 0:03:09.1]}
8... h5 {[%clk 0:02:54.7]} 9. Nxg6 {[%clk 0:03:09.7]} 9... fxg6 {[%clk
0:02:55.7]} 10. Bd3 {[%clk 0:03:09.3]} 10... Kf7 {[%clk 0:02:54]} 11. g5 {[%clk
0:03:10.5]} 11... Nfd7 {[%clk 0:02:53.5]} 12. Qf3 {[%clk 0:03:11.8]} 12... Ke8
{[%clk 0:02:52.9]} 13. Bxg6+ {[%clk 0:03:12.4]} 13... Ke7 {[%clk 0:02:53.2]} 14.
Bg3 {[%clk 0:03:05.6]} 14... Nf6 {[%clk 0:02:48.4]} 15. gxf6+ {[%clk 0:03:04.5]}
15... gxf6 {[%clk 0:02:49.9]} 16. dxc5 {[%clk 0:03:04.1]} 16... Nc6 {[%clk
0:02:50.4]} 17. Bd6+ {[%clk 0:03:04.4]} 17... Kd7 {[%clk 0:02:50.3]} 18. Nxd5
{[%clk 0:02:58.5]} 18... Bxd6 {[%clk 0:02:47.2]} 19. Nxf6+ {[%clk 0:02:58]}
19... Kc8 {[%clk 0:02:41.7]} 20. cxd6 {[%clk 0:02:53.3]} 20... Ne5 {[%clk
0:02:42.7]} 21. d7+ {[%clk 0:02:51]} 21... Kb8 {[%clk 0:02:43.6]} 22. Qf4 {[%clk
0:02:50.7]} 22... Qc7 {[%clk 0:02:44.8]} 23. O-O-O {[%clk 0:02:47.2]} 23... Rd8
{[%clk 0:02:36.6]} 24. Ne8 {[%clk 0:02:44.5]} 24... Qc5 {[%clk 0:02:34.3]} 25.
Bxh5 {[%clk 0:02:41.2]} 25... b6 {[%clk 0:02:22.9]} 26. b4 {[%clk 0:02:27.8]}
26... Qc3 {[%clk 0:02:22]} 27. Qd4 {[%clk 0:02:28.9]} 27... Qa3+ {[%clk
0:02:22]} 28. Kb1 {[%clk 0:02:30.2]} 28... Nc6 {[%clk 0:02:21.4]} 29. Qxb6#
{[%clk 0:02:30.7]} 1-0

[Event "*** Titled Tuesday Blitz"]
[Site "Chess.com"]
[Date "2019.12.03"]
[Round "4"]
[White "Philosopherrr"]
[Black "Denis_Palkovich"]
[Result "1-0"]
[WhiteElo "2444"]
[BlackElo "2230"]
[TimeControl "180+2"]
[EndTime "13:48:14 PST"]
[Termination "Philosopherrr won by resignation"]

1. e4 {[%clk 0:03:01.9]} 1... c6 {[%clk 0:03:00.3]} 2. d4 {[%clk 0:03:02.7]}
2... d5 {[%clk 0:03:01]} 3. exd5 {[%clk 0:03:04.6]} 3... cxd5 {[%clk 0:03:01.6]}
4. c4 {[%clk 0:03:06.3]} 4... Nf6 {[%clk 0:03:02]} 5. Nc3 {[%clk 0:03:07.8]}
5... Nc6 {[%clk 0:03:02]} 6. Bg5 {[%clk 0:03:09]} 6... dxc4 {[%clk 0:02:56.6]}
7. Bxc4 {[%clk 0:03:09.3]} 7... Qxd4 {[%clk 0:02:49.9]} 8. Qxd4 {[%clk
0:03:09.7]} 8... Nxd4 {[%clk 0:02:50.6]} 9. O-O-O {[%clk 0:03:11.3]} 9... e5
{[%clk 0:02:24.2]} 10. f4 {[%clk 0:03:10.9]} 10... Bg4 {[%clk 0:02:20.9]} 11.
Nf3 {[%clk 0:03:11.3]} 11... Bxf3 {[%clk 0:02:16.1]} 12. gxf3 {[%clk 0:03:11.8]}
12... Rc8 {[%clk 0:01:48.3]} 13. fxe5 {[%clk 0:03:10.1]} 13... Rxc4 {[%clk
0:01:49.1]} 14. exf6 {[%clk 0:03:11]} 14... h6 {[%clk 0:01:14.1]} 15. Rhe1+
{[%clk 0:02:58.7]} 15... Ne6 {[%clk 0:01:14.6]} 16. Rd8+ {[%clk 0:02:59.8]}
16... Kxd8 {[%clk 0:01:12.9]} 17. fxg7+ {[%clk 0:03:01.2]} 17... hxg5 {[%clk
0:00:56.7]} 18. gxh8=Q {[%clk 0:03:00.9]} 18... Kd7 {[%clk 0:00:52.2]} 19. Rxe6
{[%clk 0:03:00.2]} 1-0

[Event "*** Titled Tuesday Blitz"]
[Site "Chess.com"]
[Date "2019.12.03"]
[Round "4"]
[White "saraswathii"]
[Black "chessasuke"]
[Result "0-1"]
[WhiteElo "2227"]
[BlackElo "2620"]
[TimeControl "180+2"]
[EndTime "13:49:19 PST"]
[Termination "chessasuke won by resignation"]

1. e4 {[%clk 0:03:01.9]} 1... e6 {[%clk 0:03:01.9]} 2. d3 {[%clk 0:03:02.8]}
2... d5 {[%clk 0:03:02.6]} 3. Nd2 {[%clk 0:03:02]} 3... Nf6 {[%clk 0:03:01.6]}
4. Ngf3 {[%clk 0:03:02.3]} 4... b6 {[%clk 0:03:02.3]} 5. e5 {[%clk 0:03:00]}
5... Nfd7 {[%clk 0:02:58.8]} 6. d4 {[%clk 0:03:01.1]} 6... c5 {[%clk 0:02:59.7]}
7. c3 {[%clk 0:03:02]} 7... Ba6 {[%clk 0:03:00.3]} 8. Bxa6 {[%clk 0:03:00.6]}
8... Nxa6 {[%clk 0:03:00.4]} 9. O-O {[%clk 0:02:57.4]} 9... Be7 {[%clk
0:02:46.9]} 10. Qe2 {[%clk 0:02:57.7]} 10... Qc8 {[%clk 0:02:44.6]} 11. Rd1
{[%clk 0:02:56.9]} 11... cxd4 {[%clk 0:02:38.9]} 12. cxd4 {[%clk 0:02:56.9]}
12... Nb4 {[%clk 0:02:40.2]} 13. a3 {[%clk 0:02:56.9]} 13... Qa6 {[%clk
0:02:39.6]} 14. Qxa6 {[%clk 0:02:55.2]} 14... Nxa6 {[%clk 0:02:37.4]} 15. Nf1
{[%clk 0:02:53.5]} 15... b5 {[%clk 0:02:37.6]} 16. Bf4 {[%clk 0:02:52.7]} 16...
Nb6 {[%clk 0:02:36.7]} 17. Ne3 {[%clk 0:02:53.1]} 17... h6 {[%clk 0:02:29.5]}
18. h4 {[%clk 0:02:52.5]} 18... Kd7 {[%clk 0:02:28.6]} 19. h5 {[%clk 0:02:53]}
19... Rhc8 {[%clk 0:02:26.2]} 20. Rac1 {[%clk 0:02:51.5]} 20... Nc4 {[%clk
0:02:26.3]} 21. Nxc4 {[%clk 0:02:51.1]} 21... bxc4 {[%clk 0:02:26]} 22. Kf1
{[%clk 0:02:51.3]} 22... Rab8 {[%clk 0:02:27.2]} 23. Rc2 {[%clk 0:02:51.4]}
23... Nc7 {[%clk 0:02:26.2]} 24. Ke2 {[%clk 0:02:50.5]} 24... Rb7 {[%clk
0:02:25.2]} 25. g4 {[%clk 0:02:34.8]} 25... Rcb8 {[%clk 0:02:13.7]} 26. Rdd2
{[%clk 0:02:30.7]} 26... Na8 {[%clk 0:02:14.5]} 27. g5 {[%clk 0:02:15.8]} 27...
hxg5 {[%clk 0:02:07.7]} 28. Bxg5 {[%clk 0:02:16.4]} 28... Bf8 {[%clk 0:02:01.6]}
29. Kd1 {[%clk 0:02:14]} 29... Nb6 {[%clk 0:01:56.4]} 30. Kc1 {[%clk 0:02:14.6]}
30... Na4 {[%clk 0:01:56.9]} 0-1

[Event "*** Titled Tuesday Blitz"]
[Site "Chess.com"]
[Date "2019.12.03"]
[Round "4"]
[White "SanchezKelvin"]
[Black "black_pawn_16"]
[Result "1-0"]
[WhiteElo "2435"]
[BlackElo "2145"]
[TimeControl "180+2"]
[EndTime "13:49:35 PST"]
[Termination "SanchezKelvin won by resignation"]

1. d4 {[%clk 0:03:01.9]} 1... f5 {[%clk 0:03:00.5]} 2. c4 {[%clk 0:03:01.4]}
2... Nf6 {[%clk 0:03:01.6]} 3. Nc3 {[%clk 0:02:58.2]} 3... e6 {[%clk 0:03:02.7]}
4. Nf3 {[%clk 0:02:54.4]} 4... Bb4 {[%clk 0:03:02.9]} 5. Qc2 {[%clk 0:02:50.2]}
5... d6 {[%clk 0:02:57.2]} 6. Rg1 {[%clk 0:02:49.1]} 6... O-O {[%clk 0:02:56.4]}
7. h3 {[%clk 0:02:41.6]} 7... Nc6 {[%clk 0:02:52.7]} 8. a3 {[%clk 0:02:36.1]}
8... Bxc3+ {[%clk 0:02:53.1]} 9. Qxc3 {[%clk 0:02:36.7]} 9... Ne4 {[%clk
0:02:53.9]} 10. Qc2 {[%clk 0:02:37.1]} 10... a5 {[%clk 0:02:53.4]} 11. b3 {[%clk
0:02:37.4]} 11... e5 {[%clk 0:02:54.1]} 12. Bb2 {[%clk 0:02:36.8]} 12... Qe8
{[%clk 0:02:54.6]} 13. e3 {[%clk 0:02:25]} 13... Nf6 {[%clk 0:02:44.3]} 14.
O-O-O {[%clk 0:02:20.9]} 14... h6 {[%clk 0:02:02.9]} 15. Be2 {[%clk 0:02:19.1]}
15... Ne4 {[%clk 0:01:59.3]} 16. Bf1 {[%clk 0:02:13.2]} 16... Nf6 {[%clk
0:01:59.6]} 17. dxe5 {[%clk 0:02:00.1]} 17... dxe5 {[%clk 0:02:01.5]} 18. c5
{[%clk 0:02:00.8]} 18... e4 {[%clk 0:01:51.1]} 19. Nd4 {[%clk 0:01:56.6]} 19...
Ne5 {[%clk 0:01:51.3]} 20. f4 {[%clk 0:01:53.3]} 20... exf3 {[%clk 0:01:21.8]}
21. gxf3 {[%clk 0:01:51.1]} 21... Nxf3 {[%clk 0:01:21.7]} 22. Nxf3 {[%clk
0:01:41.2]} 22... Qxe3+ {[%clk 0:01:22]} 23. Nd2 {[%clk 0:01:42.3]} 23... Qxg1
{[%clk 0:01:21.7]} 24. Bc4+ {[%clk 0:01:42.9]} 24... Kh7 {[%clk 0:01:17.7]} 25.
Rxg1 {[%clk 0:01:43]} 1-0

[Event "*** Titled Tuesday Blitz"]
[Site "Chess.com"]
[Date "2019.12.03"]
[Round "4"]
[White "PNEPaul"]
[Black "JoakimVonAnd"]
[Result "0-1"]
[WhiteElo "1708"]
[BlackElo "2389"]
[TimeControl "180+2"]
[EndTime "13:49:38 PST"]
[Termination "JoakimVonAnd won by resignation"]

1. e4 {[%clk 0:03:01.9]} 1... c6 {[%clk 0:03:00.9]} 2. d4 {[%clk 0:03:01.9]}
2... d5 {[%clk 0:03:02.8]} 3. exd5 {[%clk 0:03:02]} 3... cxd5 {[%clk 0:03:03.9]}
4. c4 {[%clk 0:03:03.2]} 4... Nf6 {[%clk 0:03:05.4]} 5. Nc3 {[%clk 0:03:04.2]}
5... g6 {[%clk 0:03:06.7]} 6. Nf3 {[%clk 0:03:05.2]} 6... Bg7 {[%clk 0:03:07.7]}
7. Be2 {[%clk 0:03:06.4]} 7... O-O {[%clk 0:03:08.7]} 8. O-O {[%clk 0:03:07.5]}
8... Nc6 {[%clk 0:03:10.2]} 9. h3 {[%clk 0:03:08.5]} 9... dxc4 {[%clk
0:02:59.5]} 10. Bxc4 {[%clk 0:03:06.5]} 10... b6 {[%clk 0:03:00.9]} 11. d5
{[%clk 0:03:01.3]} 11... Na5 {[%clk 0:03:01.2]} 12. Be2 {[%clk 0:02:50.7]} 12...
Nb7 {[%clk 0:02:57.1]} 13. Be3 {[%clk 0:02:37.8]} 13... Nd6 {[%clk 0:02:57.4]}
14. Qb3 {[%clk 0:02:33.7]} 14... Bb7 {[%clk 0:02:58.4]} 15. Rfd1 {[%clk
0:02:33.6]} 15... Nf5 {[%clk 0:02:58.8]} 16. Bc4 {[%clk 0:02:10.6]} 16... Rc8
{[%clk 0:02:54.6]} 17. Rac1 {[%clk 0:02:08.5]} 17... Nxe3 {[%clk 0:02:51.2]} 18.
fxe3 {[%clk 0:02:08.6]} 18... Bh6 {[%clk 0:02:52.8]} 19. Kf2 {[%clk 0:02:05.2]}
19... a6 {[%clk 0:02:46.9]} 20. Ne5 {[%clk 0:01:50.6]} 20... b5 {[%clk
0:02:43.4]} 21. d6 {[%clk 0:01:35.7]} 21... e6 {[%clk 0:02:32]} 22. Bxe6 {[%clk
0:01:32.5]} 22... fxe6 {[%clk 0:02:20.7]} 23. Qxe6+ {[%clk 0:01:32.4]} 23... Kg7
{[%clk 0:02:21.3]} 24. Qe7+ {[%clk 0:00:57.6]} 24... Qxe7 {[%clk 0:02:15.7]} 25.
dxe7 {[%clk 0:00:58.5]} 25... Rfe8 {[%clk 0:02:10.3]} 26. g4 {[%clk 0:00:56.8]}
26... Rxe7 {[%clk 0:02:09.1]} 0-1

[Event "*** Titled Tuesday Blitz"]
[Site "Chess.com"]
[Date "2019.12.03"]
[Round "4"]
[White "Walter_White_Poland"]
[Black "Quiet_Desperation"]
[Result "0-1"]
[WhiteElo "2319"]
[BlackElo "2491"]
[TimeControl "180+2"]
[EndTime "13:49:46 PST"]
[Termination "Quiet_Desperation won by resignation"]

1. e4 {[%clk 0:03:01.9]} 1... e6 {[%clk 0:03:01.1]} 2. d4 {[%clk 0:03:02.1]}
2... d5 {[%clk 0:03:02.5]} 3. Nc3 {[%clk 0:03:03.1]} 3... Nf6 {[%clk 0:03:03.9]}
4. Bg5 {[%clk 0:03:03.1]} 4... Be7 {[%clk 0:03:00.7]} 5. e5 {[%clk 0:03:00.2]}
5... Nfd7 {[%clk 0:03:00.9]} 6. Bxe7 {[%clk 0:03:01.3]} 6... Qxe7 {[%clk
0:03:02]} 7. f4 {[%clk 0:03:02.2]} 7... c5 {[%clk 0:02:41.7]} 8. Nf3 {[%clk
0:03:02.5]} 8... a6 {[%clk 0:02:40.6]} 9. Bd3 {[%clk 0:03:03.2]} 9... Nc6 {[%clk
0:02:41]} 10. dxc5 {[%clk 0:03:04.2]} 10... Nxc5 {[%clk 0:02:42.2]} 11. O-O
{[%clk 0:03:03.6]} 11... Bd7 {[%clk 0:02:38.2]} 12. Qd2 {[%clk 0:02:56.7]} 12...
f6 {[%clk 0:02:30.9]} 13. exf6 {[%clk 0:02:51.1]} 13... gxf6 {[%clk 0:02:29.9]}
14. Rae1 {[%clk 0:02:50]} 14... Qd6 {[%clk 0:02:15.7]} 15. f5 {[%clk 0:02:44.1]}
15... O-O-O {[%clk 0:02:10]} 16. fxe6 {[%clk 0:02:36.3]} 16... Nxe6 {[%clk
0:02:07.8]} 17. Bf5 {[%clk 0:02:12.7]} 17... Rhg8 {[%clk 0:01:54]} 18. Qxd5
{[%clk 0:01:53.7]} 18... Rxg2+ {[%clk 0:01:54.6]} 19. Kxg2 {[%clk 0:01:35]}
19... Nf4+ {[%clk 0:01:55.1]} 20. Kh1 {[%clk 0:01:32.6]} 20... Nxd5 {[%clk
0:01:56.4]} 21. Bxd7+ {[%clk 0:01:24.4]} 21... Qxd7 {[%clk 0:01:54.7]} 22. Rd1
{[%clk 0:01:22.5]} 22... Qh3 {[%clk 0:01:48.9]} 23. Ng1 {[%clk 0:01:07.4]} 23...
Qh5 {[%clk 0:01:45.2]} 0-1

[Event "*** Titled Tuesday Blitz"]
[Site "Chess.com"]
[Date "2019.12.03"]
[Round "4"]
[White "olksuna"]
[Black "DanielNaroditsky"]
[Result "0-1"]
[WhiteElo "2600"]
[BlackElo "2990"]
[TimeControl "180+2"]
[EndTime "13:49:47 PST"]
[Termination "DanielNaroditsky won by resignation"]

1. Nf3 {[%clk 0:03:01.9]} 1... d6 {[%clk 0:03:00.9]} 2. d4 {[%clk 0:03:02.1]}
2... Nf6 {[%clk 0:03:02.3]} 3. g3 {[%clk 0:03:02.1]} 3... g6 {[%clk 0:03:03.7]}
4. Bg2 {[%clk 0:03:03.7]} 4... Bg7 {[%clk 0:03:05.4]} 5. O-O {[%clk 0:03:05.4]}
5... O-O {[%clk 0:03:07.3]} 6. c4 {[%clk 0:03:06.6]} 6... Nbd7 {[%clk
0:03:08.8]} 7. Nc3 {[%clk 0:03:05.8]} 7... e5 {[%clk 0:03:10.5]} 8. b3 {[%clk
0:03:07.3]} 8... c6 {[%clk 0:03:11.5]} 9. Ba3 {[%clk 0:03:07.9]} 9... exd4
{[%clk 0:03:10.6]} 10. Nxd4 {[%clk 0:03:07.8]} 10... Nc5 {[%clk 0:03:11.2]} 11.
Qc2 {[%clk 0:03:06.9]} 11... Qe7 {[%clk 0:03:10.2]} 12. Rad1 {[%clk 0:03:07]}
12... Re8 {[%clk 0:03:10.1]} 13. Rd2 {[%clk 0:03:08]} 13... Nfe4 {[%clk
0:02:59.8]} 14. Nxe4 {[%clk 0:03:03.5]} 14... Nxe4 {[%clk 0:03:01.7]} 15. Bxe4
{[%clk 0:02:51]} 15... Qxe4 {[%clk 0:03:02.9]} 16. Qxe4 {[%clk 0:02:38.3]} 16...
Rxe4 {[%clk 0:03:04.8]} 17. Rfd1 {[%clk 0:02:39.5]} 17... Bh3 {[%clk 0:02:49.9]}
18. e3 {[%clk 0:02:25.4]} 18... Rd8 {[%clk 0:02:36.7]} 19. Ne2 {[%clk
0:02:18.9]} 19... Bg4 {[%clk 0:02:36.2]} 20. Kg2 {[%clk 0:02:17.2]} 20... Ree8
{[%clk 0:02:10.7]} 21. Bxd6 {[%clk 0:02:01.8]} 21... Rxd6 {[%clk 0:02:10.3]} 22.
Rxd6 {[%clk 0:02:03.1]} 22... Bxe2 {[%clk 0:02:11.8]} 23. Rd8 {[%clk 0:02:03.7]}
23... Kf8 {[%clk 0:01:37.6]} 24. R1d7 {[%clk 0:02:02.1]} 24... Rxd8 {[%clk
0:01:37.4]} 25. Rxd8+ {[%clk 0:02:02.6]} 25... Ke7 {[%clk 0:01:39.3]} 26. Ra8
{[%clk 0:01:53.5]} 26... Kd6 {[%clk 0:01:21.1]} 27. f3 {[%clk 0:01:44.4]} 27...
Kc7 {[%clk 0:01:13.8]} 28. Rf8 {[%clk 0:01:43.8]} 28... Bxf8 {[%clk 0:01:14.6]}
0-1

[Event "*** Titled Tuesday Blitz"]
[Site "Chess.com"]
[Date "2019.12.03"]
[Round "4"]
[White "Sankalp_Gupta2003"]
[Black "GelmanAlexander"]
[Result "1-0"]
[WhiteElo "2767"]
[BlackElo "2501"]
[TimeControl "180+2"]
[EndTime "13:50:05 PST"]
[Termination "Sankalp_Gupta2003 won by resignation"]

1. b3 {[%clk 0:03:01.9]} 1... c5 {[%clk 0:02:57]} 2. Bb2 {[%clk 0:03:03]} 2...
e6 {[%clk 0:02:57.3]} 3. f4 {[%clk 0:03:03.2]} 3... b6 {[%clk 0:02:52.4]} 4. Nf3
{[%clk 0:03:02.3]} 4... Bb7 {[%clk 0:02:52.6]} 5. e3 {[%clk 0:03:00.5]} 5... f5
{[%clk 0:02:47.3]} 6. Be2 {[%clk 0:02:55.5]} 6... Nf6 {[%clk 0:02:47.9]} 7. O-O
{[%clk 0:02:54.1]} 7... g6 {[%clk 0:02:47.8]} 8. Ne5 {[%clk 0:02:52.1]} 8... Bg7
{[%clk 0:02:47.8]} 9. Bf3 {[%clk 0:02:53.5]} 9... d5 {[%clk 0:02:13.1]} 10. c4
{[%clk 0:02:43.4]} 10... O-O {[%clk 0:02:13.6]} 11. Nc3 {[%clk 0:02:40.4]} 11...
Na6 {[%clk 0:02:11.5]} 12. d4 {[%clk 0:02:39.4]} 12... cxd4 {[%clk 0:02:03.5]}
13. Qxd4 {[%clk 0:02:37.2]} 13... Nc7 {[%clk 0:01:52.9]} 14. Rfd1 {[%clk
0:02:26.8]} 14... Qe7 {[%clk 0:01:45.6]} 15. a4 {[%clk 0:02:24.3]} 15... Rfd8
{[%clk 0:01:43.8]} 16. Ba3 {[%clk 0:02:24.7]} 16... Qe8 {[%clk 0:01:44]} 17. c5
{[%clk 0:02:22.1]} 17... bxc5 {[%clk 0:01:42.8]} 18. Bxc5 {[%clk 0:02:23]} 18...
Nd7 {[%clk 0:01:32.6]} 19. Bxa7 {[%clk 0:02:17.3]} 19... Nxe5 {[%clk 0:01:31.9]}
20. fxe5 {[%clk 0:02:19.2]} 20... g5 {[%clk 0:00:56.6]} 21. Bb6 {[%clk 0:02:17]}
21... Rdc8 {[%clk 0:00:57.3]} 22. Rac1 {[%clk 0:02:13.3]} 22... g4 {[%clk
0:00:56.9]} 23. Be2 {[%clk 0:02:13.4]} 23... Ba6 {[%clk 0:00:43.2]} 24. Bxc7
{[%clk 0:02:03.1]} 24... Bxe2 {[%clk 0:00:43]} 25. Nxe2 {[%clk 0:02:03.3]} 1-0

[Event "*** Titled Tuesday Blitz"]
[Site "Chess.com"]
[Date "2019.12.03"]
[Round "4"]
[White "IMRosen"]
[Black "Bigfish1995"]
[Result "0-1"]
[WhiteElo "2601"]
[BlackElo "2991"]
[TimeControl "180+2"]
[EndTime "13:50:08 PST"]
[Termination "Bigfish1995 won by resignation"]

1. d4 {[%clk 0:03:01.9]} 1... Nf6 {[%clk 0:02:57.1]} 2. Bf4 {[%clk 0:03:02.9]}
2... g6 {[%clk 0:02:58.5]} 3. Nc3 {[%clk 0:03:03.7]} 3... Bg7 {[%clk 0:02:55.9]}
4. e4 {[%clk 0:03:04.3]} 4... d6 {[%clk 0:02:55.2]} 5. Qd2 {[%clk 0:03:05.6]}
5... Nc6 {[%clk 0:02:54.2]} 6. Nf3 {[%clk 0:03:05.9]} 6... Bg4 {[%clk
0:02:51.5]} 7. O-O-O {[%clk 0:03:06.7]} 7... Nd7 {[%clk 0:02:50]} 8. Qe3 {[%clk
0:02:58.7]} 8... Bxf3 {[%clk 0:02:47.4]} 9. gxf3 {[%clk 0:02:58.8]} 9... Bxd4
{[%clk 0:02:48.5]} 10. Qd2 {[%clk 0:01:55.5]} 10... a6 {[%clk 0:02:35.1]} 11. h4
{[%clk 0:01:55.7]} 11... h5 {[%clk 0:02:36.3]} 12. Rg1 {[%clk 0:01:55.7]} 12...
Nde5 {[%clk 0:02:32.4]} 13. Be2 {[%clk 0:01:55.3]} 13... Bxf2 {[%clk 0:02:26.5]}
14. Rg2 {[%clk 0:01:54.8]} 14... Bxh4 {[%clk 0:02:25.1]} 15. Nd5 {[%clk
0:01:55.6]} 15... e6 {[%clk 0:02:24.7]} 16. Nc3 {[%clk 0:01:47]} 16... Bf6
{[%clk 0:02:21.1]} 17. Be3 {[%clk 0:01:42.1]} 17... Qe7 {[%clk 0:02:22.2]} 18.
f4 {[%clk 0:01:38.5]} 18... Ng4 {[%clk 0:02:23.2]} 19. Bg1 {[%clk 0:01:35.5]}
19... O-O-O {[%clk 0:02:16.2]} 20. Kb1 {[%clk 0:01:33.1]} 20... Rhe8 {[%clk
0:02:10.9]} 21. Na4 {[%clk 0:01:29.6]} 21... d5 {[%clk 0:02:08.5]} 22. e5 {[%clk
0:01:29.3]} 22... Bh4 {[%clk 0:02:05.1]} 23. Bc5 {[%clk 0:01:28.2]} 23... Qd7
{[%clk 0:02:02.3]} 24. Ba3 {[%clk 0:01:13.2]} 24... Be7 {[%clk 0:02:01.2]} 25.
Nc5 {[%clk 0:01:09.6]} 25... Bxc5 {[%clk 0:02:02.4]} 26. Bxc5 {[%clk 0:01:11.5]}
26... d4 {[%clk 0:02:03.7]} 27. Rg3 {[%clk 0:01:05.6]} 27... Ne3 {[%clk
0:01:59]} 28. Rh1 {[%clk 0:01:03.6]} 28... Qd5 {[%clk 0:01:59.9]} 29. Rc1 {[%clk
0:00:49.3]} 29... Qxc5 {[%clk 0:02:00.6]} 30. c3 {[%clk 0:00:51.1]} 30... Nf5
{[%clk 0:01:58.4]} 0-1

[Event "*** Titled Tuesday Blitz"]
[Site "Chess.com"]
[Date "2019.12.03"]
[Round "4"]
[White "allvim"]
[Black "Glufs"]
[Result "0-1"]
[WhiteElo "2194"]
[BlackElo "2366"]
[TimeControl "180+2"]
[EndTime "13:50:08 PST"]
[Termination "Glufs won by resignation"]

1. e4 {[%clk 0:03:01.9]} 1... c6 {[%clk 0:03:00.7]} 2. Nc3 {[%clk 0:02:20]} 2...
d5 {[%clk 0:03:00.9]} 3. Nf3 {[%clk 0:02:04.1]} 3... dxe4 {[%clk 0:03:01.3]} 4.
Nxe4 {[%clk 0:02:02.4]} 4... Nf6 {[%clk 0:03:02.2]} 5. Nxf6+ {[%clk 0:02:02.2]}
5... exf6 {[%clk 0:03:02.8]} 6. d4 {[%clk 0:01:51.9]} 6... Bd6 {[%clk
0:03:02.9]} 7. Bd3 {[%clk 0:01:50.2]} 7... O-O {[%clk 0:03:03.3]} 8. O-O {[%clk
0:01:49.3]} 8... Bg4 {[%clk 0:02:51.1]} 9. h3 {[%clk 0:01:49]} 9... Bh5 {[%clk
0:02:51.7]} 10. c3 {[%clk 0:01:43.5]} 10... Nd7 {[%clk 0:02:48.9]} 11. Qc2
{[%clk 0:01:37.9]} 11... Bxf3 {[%clk 0:02:41.3]} 12. Bxh7+ {[%clk 0:01:33.5]}
12... Kh8 {[%clk 0:02:42.3]} 13. gxf3 {[%clk 0:01:32.9]} 13... g6 {[%clk
0:02:39.7]} 14. Bxg6 {[%clk 0:01:29.5]} 14... fxg6 {[%clk 0:02:40.4]} 15. Kh1
{[%clk 0:01:25.4]} 15... f5 {[%clk 0:02:37.3]} 16. Rg1 {[%clk 0:01:24.6]} 16...
Kh7 {[%clk 0:02:28.4]} 17. Bg5 {[%clk 0:01:20.9]} 17... Be7 {[%clk 0:02:29.1]}
18. f4 {[%clk 0:01:12.6]} 18... Nf6 {[%clk 0:02:26.2]} 19. Rae1 {[%clk
0:01:02.9]} 19... Rf7 {[%clk 0:02:09.4]} 20. Re2 {[%clk 0:00:55.7]} 20... Ne4
{[%clk 0:02:01]} 21. h4 {[%clk 0:00:52]} 21... Nxg5 {[%clk 0:01:52]} 22. fxg5
{[%clk 0:00:53.9]} 22... Qd5+ {[%clk 0:01:47]} 23. Kh2 {[%clk 0:00:52.4]} 23...
Bd6+ {[%clk 0:01:47.4]} 0-1